[Event "44th Indian Team Championship 2025"]
[Site "Gujarat"]
[Date "2025.03.06"]
[Round "2.17"]
[White "Sherla Prathamesh"]
[Black "Tiwari Shivansh"]
[Result "1-0"]
[Annotator "TA"]
[ECO "D27"]
[WhiteElo "2131"]
[BlackElo "1970"]
[PlyCount "67"]
[EventDate "2025.03.03"]
[EventCountry "IND"]
[SourceTitle "playchess.com"]
[Source "ChessBase"]
[SourceQuality "1"]
[TimeControl "5400+30"]

{[%evp 16,67,15,8,20,0,20,10,25,4,17,20,41,27,33,33,34,22,14,20,29,32,22,24,52,25,30,18,17,19,23,13,62,23,43,40,68,60,100,103,156,132,231,227,747,729,855,838,5818,5816,2457,821,2862,2412]} 1. c4 {[%emt 0:03:44]} e6 {[%emt 0:00:27]} 2. Nf3 {[%emt 0:01:04]} d5 {[%emt 0:00:06]} 3. e3 {[%emt 0:00:03]} Nf6 {[%emt 0:00:15]} 4. Nc3 {[%emt 0:00:06]} dxc4 {[%emt 0:02:01]} 5. Bxc4 {[%emt 0:00:22]} a6 {[%emt 0:00:08]} 6. a4 {[%emt 0:01:59]} c5 {[%emt 0:00:20]} 7. d4 {[%emt 0:02:37]} Nc6 {[%emt 0:02:03]} 8. O-O {[%emt 0:00:41]} Be7 {[%emt 0:04:01]} 9. dxc5 {[%emt 0:01:21]} O-O {[%emt 0:01:48] D27: Queen's Gambit Accepted: Classical main line: 7 e4!? and 7 a4.} 10. e4 {[%emt 0:04:59]} Bxc5 {[%emt 0:01:01]} 11. Bf4 {[%emt 0:10:00]} Qa5 {[%emt 0:18:44] The position is equal.} 12. Qe2 {[%emt 0:01:45]} e5 {[%emt 0:07:55]} 13. Bg5 $146 {[%emt 0:06:32]} (13. Bxe5 Nxe5 14. Nxe5 Qc7 15. Nxf7 Rxf7 16. Bxf7+ Kxf7 17. Nd5 Qe5 18. Nxf6 gxf6 19. Rad1 {½-½ Hilgert,D-Coffield,A IECC CL6-1997.06}) 13... Bg4 {[%emt 0:03:21]} 14. Bxf6 {[%emt 0:02:21]} gxf6 {[%emt 0:02:26]} 15. Qd3 {[%emt 0:04:58]} Nb4 {[%emt 0:07:36]} 16. Qd2 {[%emt 0:02:32][%cal Of3e5]} Bxf3 {[%emt 0:01:51]} (16... Qd8 17. Qh6 Bxf3 18. gxf3 Kh8) 17. gxf3 {[%emt 0:00:01] [#]} Kh8 {[%emt 0:14:28]} 18. Kh1 {[%emt 0:01:04]} Qd8 {[%emt 0:07:03]} 19. Qh6 {[%emt 0:03:07]} Qe7 {[%emt 0:00:58]} 20. Qh5 {[%emt 0:01:45]} Rad8 {[%emt 0:04:14]} 21. Nd5 {[%emt 0:05:44]} Nxd5 {[%emt 0:00:52]} 22. exd5 {[%emt 0:00:07][%cal Be4d5,Bd5e6,Be6e7][%mdl 32]} Rg8 {[%emt 0:12:54]} 23. Bd3 $40 {[%emt 0:02:13][%csl Gd3][%cal Rh5h7][%mdl 128] White has some attack.} f5 {[%emt 0:00:36]} ({Not} 23... Rxd5 24. Qxh7#) (23... Rg6 $11 {deserves consideration.}) 24. Qxf5 {[%emt 0:07:02][%csl Gd3][%cal Rf5h7]} f6 {[%emt 0:00:21][%cal Og8g5]} (24... Qh4 {seems wilder.} 25. Be4 Rg6 26. Rac1 Rf6) 25. Rac1 {[%emt 0:01:37][%cal Oc1c5]} Rg5 {[%emt 0:03:11]} 26. Qe6 {[%emt 0:02:31][%cal Oc1c5]} Qxe6 {[%emt 0:03:43]} 27. dxe6 {[%emt 0:00:39]} Bd6 {[%emt 0:00:53]} (27... Rxd3 28. Rxc5 Rd6 29. e7) (27... Bb6 $142) 28. Be4 $16 {[%emt 0:00:18] White is more active.} Rdg8 {[%emt 0:00:35]} (28... Kg7 $16 29. Bxb7 a5) 29. Rfd1 $18 {[%emt 0:00:50]} Bb8 {[%emt 0:00:25]} (29... Bb4 30. Rd7 (30. Bxb7 a5 $18) 30... R5g7 31. Bxb7 a5) 30. e7 {[%emt 0:01:03][%cal Od1d8] White is clearly winning.} f5 {[%emt 0:00:25] [#]} 31. Rd8 $1 {[%emt 0:00:26] And now Bd5 would win.} Bc7 {[%emt 0:00:45]} (31... Bd6 32. e8=Q) 32. Rxg8+ {[%emt 0:02:18]} (32. Rxc7 $2 Rg1#) 32... Rxg8 {[%emt 0:00:10]} 33. Bd5 {[%emt 0:00:05]} (33. Bxf5 Bd6 34. Bc8 a5 35. Bxb7 Re8 $18) (33. Rxc7 $142 fxe4 34. Rd7 (34. fxe4 Re8 $18)) 33... Re8 {[%emt 0:00:53]} 34. Rxc7 {[%emt 0:00:08] Weighted Error Value: White=0.27 (precise) /Black=0.79  Mistake:       	---       	Black=4      Inaccurate:     	White=2     	Black=3      OK:         	White=11    	Black=6      Best:        	White=1     	---} 1-0

[Event "44th Indian Team Championship 2025"]
[Site "Gujarat"]
[Date "2025.03.06"]
[Round "2.18"]
[White "Mishra Kamad"]
[Black "Sharnarthi Viresh"]
[Result "0-1"]
[Annotator "TA"]
[ECO "B09"]
[WhiteElo "1949"]
[BlackElo "2198"]
[PlyCount "104"]
[EventDate "2025.03.03"]
[EventCountry "IND"]
[SourceTitle "playchess.com"]
[Source "ChessBase"]
[SourceQuality "1"]
[TimeControl "5400+30"]

{[%evp 12,104,6,-2,0,0,0,0,0,0,14,9,25,-20,31,35,46,46,50,49,63,47,49,19,93,100,107,108,121,118,131,109,116,116,243,129,274,122,214,163,176,173,182,158,171,187,187,182,291,276,235,235,235,228,348,330,350,0,114,54,54,56,57,-58,-78,-83,-67,-89,-79,-108,-47,-75,0,-35,-34,-63,0,-18,-10,-46,-26,-105,-56,-98,-89,-5317,-9423,-9189,-6095,-4822,-4727,-29989,-29990,-29991,-29982]} 1. d4 {[%emt 0:00:02]} d6 {[%emt 0:06:30]} 2. Nc3 {[%emt 0:00:57]} Nf6 {[%emt 0:00:42]} 3. e4 {[%emt 0:00:53]} g6 {[%emt 0:00:07]} 4. f4 {[%emt 0:00:33]} Bg7 {[%emt 0:00:26]} 5. e5 {[%emt 0:02:29]} dxe5 {[%emt 0:02:18]} 6. fxe5 {[%emt 0:01:18]} Nd5 {[%emt 0:00:08]} 7. Bc4 {[%emt 0:07:18] The main line 7.Bc4 scores better than 7.Nf3.} Be6 {[%emt 0:03:13] B09: Pirc Defence: Austrian Attack.} 8. Bxd5 {[%emt 0:17:30]} Bxd5 {[%emt 0:00:07]} 9. Nxd5 {[%emt 0:00:17]} Qxd5 {[%emt 0:00:07] The position is equal.} 10. Qf3 {[%emt 0:00:31]} Qa5+ $146 {[%emt 0:05:52]} (10... Qxd4 $2 11. Qxb7 c6 (11... Qxe5+ $2 12. Ne2 $18) 12. Qxa8 $18) (10... c6 11. Qxd5 cxd5 12. Nf3 Nc6 {½-½ Sanson Hernandez,M-Kamanel Zamora,J CUB-ch corr Cuba 1992}) 11. Bd2 {[%emt 0:03:11]} Qb6 {[%emt 0:00:47]} 12. Ne2 {[%emt 0:07:18]} Nc6 {[%emt 0:01:08]} ({Black should play} 12... c5 $11) 13. Bc3 $14 {[%emt 0:01:48]} Rd8 {[%emt 0:02:58]} 14. O-O-O {[%emt 0:01:53]} O-O {[%emt 0:00:53]} 15. h4 {[%emt 0:01:24]} Nb4 {[%emt 0:08:29]} 16. Kb1 {[%emt 0:20:06]} Nd5 {[%emt 0:00:21]} 17. h5 {[%emt 0:01:50]} Qc6 {[%emt 0:04:11]} (17... c5 $11) 18. Bd2 $16 {[%emt 0:06:15]} h6 {[%emt 0:02:14][%cal Bh7h6,Bh6h5][%mdl 32]} 19. hxg6 {[%emt 0:03:02]} fxg6 {[%emt 0:00:10]} 20. Qd3 {[%emt 0:04:05]} h5 {[%emt 0:08:12]} 21. Rdf1 {[%emt 0:11:59]} Rxf1+ {[%emt 0:01:02]} 22. Rxf1 {[%emt 0:00:01]} Nb6 {[%emt 0:00:18]} (22... b5 $16) 23. Bc1 {[%emt 0:04:45]} ({Better is} 23. Nf4 $18) 23... Nc4 {[%emt 0:02:56]} (23... Nd5 $16 {is a better defense.}) 24. Qg3 {[%emt 0:10:27]} (24. e6 $1 $18 {is the precise move to win.} Qxe6 25. Nf4) 24... Kh7 {[%emt 0:08:51]} (24... Qe4 $16 25. Nf4 Rxd4) 25. Rf7 {[%emt 0:00:00][%cal Og3g5]} Qe6 {[%emt 0:00:02]} 26. Qf4 $40 {[%emt 0:00:00][%mdl 128] White wants to mate with Qh6+. White is out for blood.} Kg8 {[%emt 0:28:09] [#]} 27. Rxg7+ {[%emt 0:00:00][%mdl 512] White attacks} Kxg7 {[%emt 0:00:01]} 28. Qh6+ {[%emt 0:00:00]} Kg8 {[%emt 0:00:01]} 29. Nf4 {[%emt 0:00:00]} Qf7 {[%emt 0:00:01]} (29... Na3+ $142 30. bxa3 Qb6+ 31. Bb2 Rxd4) 30. Nxg6 $18 {[%emt 0:00:00]} Qg7 {[%emt 0:01:24] and ...Qxh6 should not be overlooked Repels Qh8+} 31. Qg5 {[%emt 0:00:00]} (31. Qxh5 Rxd4 32. b3 Nd2+ 33. Ka1 e6 $11) 31... Re8 {[%emt 0:01:22]} (31... Rxd4 $2 32. Nxe7+ Kf8 33. Qxg7+ Kxg7 34. Nf5+ Kg6 35. Nxd4 $18) 32. Qxh5 {[%emt 0:00:00]} e6 {[%emt 0:02:45]} (32... Qh7 $142 33. Qg4 Qg7) 33. Nf4 {[%emt 0:00:00]} Re7 {[%emt 0:02:50]} 34. Ng6 $2 {[%emt 0:00:00] Repels Nb6} (34. b3 $18 Nb6 35. Ba3) 34... Rf7 {[%emt 0:03:41]} (34... Re8 $1 $11 {remains equal.}) 35. b3 {[%emt 0:00:00]} ({Weaker is} 35. Nf4 Qg3 $18) (35. g4 $16) 35... Rf5 $1 $14 {[%emt 0:00:34]} 36. Qg4 {[%emt 0:00:00]} Kf7 {[%emt 0:00:01] Prevents Ne7} 37. bxc4 {[%emt 0:00:00]} (37. d5 $14 Na3+ 38. Bxa3 Qxg6 39. Qb4 (39. Qc4 Qxg2 40. dxe6+ Kg6 $15)) 37... Qxg6 {[%emt 0:00:02][%mdl 4096] Endgame KQR-KQB} 38. Qe2 {[%emt 0:00:00] g4 is the strong threat.} Qg3 {[%emt 0:01:10][%mdl 1024] Black has strong compensation.} 39. Be3 {[%emt 0:00:00] [#] Prevents Rf2.} c5 $1 {[%emt 0:01:05] Black is more active.} 40. c3 {[%emt 0:00:00]} Qh2 {[%emt 0:01:56]} (40... cxd4 $17 41. cxd4 Ke8) 41. Kb2 {[%emt 0:00:32] [#]} b6 {[%emt 0:01:54]} (41... cxd4 $1 $17 42. cxd4 Qg3) 42. Ka3 {[%emt 0:00:32]} (42. dxc5 {simplifies} bxc5 43. Bxc5 Qxe5 44. Qxe5 Rxe5 45. Bxa7 Ke8 46. g3) 42... Qg3 {[%emt 0:01:07]} 43. Kb2 {[%emt 0:00:11]} Qh2 {[%emt 0:00:05]} 44. Ka3 {[%emt 0:00:18]} cxd4 {[%emt 0:01:07]} 45. cxd4 {[%emt 0:00:15]} Qh1 {[%emt 0:00:15]} 46. d5 {[%emt 0:01:18]} (46. Kb2 $11) 46... Qa1 {[%emt 0:00:47]} ({Of course not} 46... Rxe5 $6 47. Qf3+ Ke7 48. Bd2 exd5 49. Bb4+ Ke6 50. cxd5+ Rxd5 51. Qe4+ Re5 52. Qg6+ Kd5 53. Qd3+ Ke6 54. Qd6+ (54. Qg6+ Kd5 $11) 54... Kf5 55. Qd7+ Ke4 56. Qc6+ Rd5 57. Qe6+ Kd4 58. Qf6+ Kd3 59. Qf3+ Kd4 60. Qg4+ Ke3 61. Qf3+ Kd4 62. Qg4+ Ke5 63. Qg7+ Kf4 64. Qf6+ Ke4 65. Qf3+ Ke5 66. Qc3+ Rd4 67. Qg3+ Kf5 68. Qf2+ Rf4 69. Qc2+ Re4 70. Qc8+ Ke5 71. Qe8+ Kd5 72. Qd7+ Kc4 73. Qf7+ Kd4 74. Qd7+ Kc4 75. Qc6+ Kd4 76. Qd7+ Kc4 $11) (46... Qf1 $17 47. Qxf1 Rxf1 48. dxe6+ Kxe6) 47. Qd3 $15 {[%emt 0:00:28]} Qxe5 {[%emt 0:00:38][%cal Re6d5]} 48. g4 $2 {[%emt 0:00:19][%mdl 8192] [#]} (48. Bd4 $17 Qd6+ 49. Kb2) 48... Rf3 $1 $19 {[%emt 0:00:38]} 49. Qh7+ {[%emt 0:00:44]} Kf8 {[%emt 0:00:19] ( -> ...Qc3+)} 50. Qh6+ {[%emt 0:00:23]} Ke7 {[%emt 0:00:01]} 51. Qh4+ {[%emt 0:00:13]} Kd7 {[%emt 0:00:10]} 52. dxe6+ {[%emt 0:00:20]} Kc8 {[%emt 0:00:38] Black used his chance.   Weighted Error Value: White=0.50/Black=0.29 (precise)   Loses game:     	White=1     	---        Missed win:     	White=1     	---        Mistake:       	White=5     	Black=11     Inaccurate:     	White=6     	Black=1      OK:         	White=17    	Black=9      Best:        	White=2     	Black=4      Strong:       	---       	Black=2      Brilliant:      	White=1     	---} 0-1

[Event "44th Indian Team Championship 2025"]
[Site "Gujarat"]
[Date "2025.03.06"]
[Round "2.19"]
[White "Jain, Kushagra"]
[Black "Abhay Bandewar"]
[Result "1/2-1/2"]
[Annotator "NA RC"]
[ECO "B36"]
[WhiteElo "2138"]
[BlackElo "1976"]
[PlyCount "40"]
[EventDate "2025.03.03"]
[EventCountry "IND"]
[SourceTitle "playchess.com"]
[Source "ChessBase"]
[SourceQuality "1"]
[TimeControl "5400+30"]

1. e4 {[%emt 0:02:54]} c5 {[%emt 0:00:32]} 2. Nf3 {[%emt 0:01:43]} Nc6 {[%emt 0:00:25]} 3. d4 {[%emt 0:00:09]} cxd4 {[%emt 0:00:06]} 4. Nxd4 {[%emt 0:00:02]} g6 {[%emt 0:01:37]} 5. c4 {[%emt 0:03:00]} Nf6 {[%emt 0:00:24]} 6. Nc3 {[%emt 0:00:21]} d6 {[%emt 0:00:05]} 7. Be2 {[%emt 0:00:31]} Nxd4 {[%emt 0:00:09]} 8. Qxd4 {[%emt 0:00:06]} Bg7 {[%emt 0:00:03]} 9. Be3 {[%emt 0:02:40]} O-O {[%emt 0:00:10]} 10. Qd3 {[%emt 0:04:21]} Be6 {[%emt 0:04:20]} 11. O-O {[%emt 0:00:33]} Nd7 {[%emt 0:02:15]} 12. f4 {[%emt 0:11:23]} Rc8 {[%emt 0:04:21]} 13. Nd5 {[%emt 0:08:23]} Nc5 {[%emt 0:03:24]} 14. Qc2 {[%emt 0:01:15]} f5 {[%emt 0:10:38]} 15. exf5 {[%emt 0:01:03]} Bxf5 {[%emt 0:07:04]} 16. Qd2 {[%emt 0:01:00]} Ne4 {[%emt 0:02:31]} 17. Qd1 {[%emt 0:09:32]} Nc5 {[%emt 0:17:14]} 18. Qd2 {[%emt 0:06:25]} Ne4 {[%emt 0:01:27]} 19. Qd1 {[%emt 0:00:10]} Nc5 {[%emt 0:00:18]} 20. Qd2 {[%emt 0:15:13]} Ne4 {[%emt 0:02:32]} 1/2-1/2

[Event "44th Indian Team Championship 2025"]
[Site "Gujarat"]
[Date "2025.03.06"]
[Round "2.20"]
[White "Choubey Saurabh"]
[Black "Gaikwad Manas"]
[Result "1/2-1/2"]
[Annotator "TA"]
[ECO "A55"]
[WhiteElo "2069"]
[BlackElo "2179"]
[PlyCount "115"]
[EventDate "2025.03.03"]
[EventCountry "IND"]
[SourceTitle "playchess.com"]
[Source "ChessBase"]
[SourceQuality "1"]
[TimeControl "5400+30"]

{[%evp 20,115,42,37,52,12,18,13,16,1,-11,-24,-22,-23,-21,-24,-7,0,0,-13,-13,-5,0,0,2,13,39,0,10,1,7,20,8,-14,17,0,-4,-22,-55,-45,-52,-52,-46,-68,-31,-27,0,-29,0,-69,-69,-113,-102,-84,-94,-102,0,-153,-155,-144,-87,-106,-106,-106,-106,-106,-106,-106,-104,-101,-98,-98,-91,-91,-49,-91,-91,-91,-91,-91,-91,-91,-91,-91,-91,-91,-91,-91,-83,-435,-98,-97,-83,-109,-97,-98,-98,-101]} 1. d4 {[%emt 0:00:04]} d6 {[%emt 0:06:28]} 2. Nf3 {[%emt 0:02:09]} Nf6 {[%emt 0:00:11]} 3. g3 {[%emt 0:01:18]} Nbd7 {[%emt 0:00:51]} 4. c4 {[%emt 0:01:58]} e5 {[%emt 0:00:22]} 5. Nc3 {[%emt 0:00:29]} Be7 {[%emt 0:00:04]} 6. Bg2 {[%emt 0:01:19]} O-O {[%emt 0:00:28]} 7. O-O {[%emt 0:00:14]} Re8 {[%emt 0:00:33]} 8. Qc2 {[%emt 0:03:38]} c6 {[%emt 0:04:18]} 9. Rd1 {[%emt 0:01:06]} Qc7 {[%emt 0:00:25]} 10. b3 {[%emt 0:04:39]} Bf8 {[%emt 0:03:01]} 11. e4 {[%emt 0:00:48] is the legacy move (11.Bb2).} a6 {[%emt 0:04:04] A55: Old Indian Defence with Nf3 and e4.} 12. d5 $146 {[%emt 0:14:25]} (12. a4 exd4 13. Nxd4 a5 14. Bf4 Ne5 15. h3 Nfd7 16. Be3 Nc5 17. f4 Ned7 18. Bf2 h5 {1-0 Cordova,E (2542)-Escobar Forero,A (2473) Carlos Torre Memorial op 32nd 2022 (5)}) 12... cxd5 {[%emt 0:01:38]} 13. Nxd5 {[%emt 0:00:16]} Nxd5 {[%emt 0:00:30] The position is equal.} 14. Rxd5 {[%emt 0:01:07]} b5 {[%emt 0:02:45]} 15. Rd2 {[%emt 0:09:00]} Bb7 {[%emt 0:14:39]} 16. Ba3 {[%emt 0:12:08]} Nc5 {[%emt 0:11:05]} 17. Ne1 {[%emt 0:05:02][%cal Bf3e1,Be1g2,Bg2e3,Be3d5][%mdl 32]} Qa5 {[%emt 0:10:32]} 18. Bxc5 {[%emt 0:02:36]} dxc5 {[%emt 0:01:00]} 19. Rad1 {[%emt 0:00:16]} Bc6 {[%emt 0:03:31]} 20. Bf1 {[%emt 0:03:22]} Qb6 {[%emt 0:04:26]} 21. Ng2 {[%emt 0:04:37]} Qb7 {[%emt 0:02:41]} 22. f3 {[%emt 0:07:15]} f5 {[%emt 0:14:52][%cal Bf7f5,Bf5f4][%mdl 32]} 23. Bd3 {[%emt 0:01:57]} Kh8 {[%emt 0:00:29]} 24. Ne3 {[%emt 0:02:34]} f4 {[%emt 0:00:24]} 25. Nd5 {[%emt 0:01:39]} Qf7 {[%emt 0:00:07]} 26. Be2 {[%emt 0:05:27]} Rad8 {[%emt 0:02:06]} 27. Kg2 {[%emt 0:01:43]} b4 {[%emt 0:02:49]} 28. Nb6 {[%emt 0:01:59]} Rd4 {[%emt 0:01:36]} 29. Rxd4 {[%emt 0:00:53]} exd4 {[%emt 0:00:26] NOTEXT-51077 Black (d4)} 30. Nd5 {[%emt 0:00:23]} Bd6 {[%emt 0:00:17]} 31. Bd3 {[%emt 0:03:05]} Bd7 {[%emt 0:01:48]} 32. g4 {[%emt 0:02:03]} a5 {[%emt 0:01:34]} 33. h3 {[%emt 0:02:33]} Be5 {[%emt 0:01:30]} 34. Qf2 {[%emt 0:00:36]} ({White should try} 34. a3 $11) 34... a4 {[%emt 0:01:21]} 35. Bc2 {[%emt 0:02:21]} Bc6 {[%emt 0:00:34]} 36. Qh4 {[%emt 0:01:04]} axb3 {[%emt 0:01:18]} 37. axb3 {[%emt 0:01:13]} Ra8 {[%emt 0:00:06]} ({Better is} 37... Qf8 $17) 38. Qe7 $2 {[%emt 0:01:26]} (38. Qg5 $11 Re8 39. Bd3) 38... Qxe7 $17 {[%emt 0:03:38]} 39. Nxe7 {[%emt 0:00:03]} Bb7 {[%emt 0:00:28]} (39... Be8 $142 {Strongly threatening ...Ra7.} 40. Rd2 g5) 40. Rd2 {[%emt 0:00:50]} Ra2 {[%emt 0:00:19] [#]} 41. Re2 {[%emt 0:00:22]} Rb2 {[%emt 0:00:31]} 42. Bd1 {[%emt 0:00:28]} Rb1 {[%emt 0:00:18]} 43. Rd2 {[%emt 0:00:28]} g6 {[%emt 0:00:27]} 44. Nd5 {[%emt 0:00:47]} Kg7 {[%emt 0:00:20]} 45. h4 {[%emt 0:00:41]} h6 {[%emt 0:00:18]} 46. Kh3 {[%emt 0:00:28]} Bc8 {[%emt 0:00:58]} 47. Kg2 {[%emt 0:00:05]} Bd7 {[%emt 0:00:52]} 48. Nb6 {[%emt 0:00:45]} Bc6 {[%emt 0:00:06]} 49. Nd5 {[%emt 0:00:04]} Kf7 {[%emt 0:00:14]} 50. Kh3 {[%emt 0:00:25]} Ra1 {[%emt 0:00:37]} 51. Kg2 {[%emt 0:00:23]} Ke6 {[%emt 0:00:10]} 52. Kh3 {[%emt 0:00:26]} Bd6 {[%emt 0:00:21]} 53. Kg2 {[%emt 0:00:49]} Ke5 {[%emt 0:00:08]} 54. Kh3 $2 {[%emt 0:01:01][%mdl 8192] [#]} (54. Kf2 $17) 54... Bf8 $2 {[%emt 0:01:01]} (54... Bxd5 $1 $19 {is more deadly.} 55. exd5 d3) 55. Kg2 {[%emt 0:00:02] Black is better.} Bd7 {[%emt 0:00:10]} 56. Kh2 {[%emt 0:00:42]} Bd6 {[%emt 0:01:00]} 57. Kg2 {[%emt 0:00:17]} Bb8 {[%emt 0:00:11]} 58. Kf2 {[%emt 0:00:16] Weighted Error Value: White=0.28 (precise) /Black=0.22 (precise)   Loses game:     	White=1     	---        Missed win:     	---       	Black=1      Mistake:       	White=2     	Black=2      Inaccurate:     	White=6     	Black=6      OK:         	White=17    	Black=13     Best:        	---       	Black=1} 1/2-1/2

[Event "44th Indian Team Championship 2025"]
[Site "Gujarat"]
[Date "2025.03.06"]
[Round "2.21"]
[White "Setumadhav Yellumahanthi"]
[Black "Raj D Vyas"]
[Result "1-0"]
[Annotator "TA"]
[ECO "B38"]
[WhiteElo "2313"]
[BlackElo "1900"]
[PlyCount "67"]
[EventDate "2025.03.03"]
[EventCountry "IND"]
[SourceTitle "playchess.com"]
[Source "ChessBase"]
[SourceQuality "1"]
[TimeControl "5400+30"]

{[%evp 19,67,30,31,19,17,34,44,26,26,12,47,56,52,42,64,41,54,51,200,77,122,117,291,312,266,252,319,331,360,355,460,437,420,418,399,397,29982,29983,29983,29984,29984,29985,29985,-707,29986,29987,29996,29997,29997,1214]} 1. e4 {[%emt 0:00:03]} c5 {[%emt 0:01:44]} 2. Nf3 {[%emt 0:00:29]} Nc6 {[%emt 0:02:04]} 3. d4 {[%emt 0:00:06]} cxd4 {[%emt 0:00:05]} 4. Nxd4 {[%emt 0:00:04]} d6 {[%emt 0:01:03]} 5. c4 {[%emt 0:01:08]} Nf6 {[%emt 0:00:51]} 6. Nc3 {[%emt 0:00:16]} Bd7 {[%emt 0:03:21]} 7. Be2 {[%emt 0:00:39]} g6 {[%emt 0:00:23]} 8. Be3 {[%emt 0:00:14]} Bg7 {[%emt 0:00:06]} 9. O-O {[%emt 0:00:21]} O-O {[%emt 0:00:06]} 10. h3 {[%emt 0:00:05]} a6 {[%emt 0:02:56]} 11. Rc1 {[%emt 0:05:15] B38: Sicilian: Maroczy Bind with 5...Bg7 and 7...0-0.} Nxd4 {[%emt 0:01:35]} 12. Bxd4 {[%emt 0:00:06]} Bc6 {[%emt 0:00:06]} 13. Qc2 {[%emt 0:03:22] White is slightly better.} Rc8 {[%emt 0:00:23]} 14. Qd3 {[%emt 0:08:34]} Qa5 {[%emt 0:06:33]} 15. a3 {[%emt 0:03:48]} Nh5 {[%emt 0:11:19]} 16. Bxh5 $146 {[%emt 0:05:21]} ({Predecessor:} 16. Bxg7 Kxg7 17. Nd5 Bxd5 18. exd5 Nf6 19. b4 Qa4 20. f4 Rfd8 21. Qe3 {0-1 Akmalov,D (1920)-Kuzmin,E (2171) Samara Polugaevsky Memorial 4th 2014 (7)}) 16... Qxh5 {[%emt 0:00:13]} 17. b4 {[%emt 0:01:40]} Bxd4 {[%emt 0:15:40]} 18. Qxd4 {[%emt 0:00:52]} f5 {[%emt 0:02:13] [#]} ({Black should try} 18... Qe5 $14 19. Qxe5 dxe5) 19. Nd5 {[%emt 0:02:30]} (19. b5 $1 $18 {[%cal Rb5c6] and the rest is easy.} Be8 20. Nd5) 19... Rf7 {[%emt 0:03:52] [#] Black is weak on the dark squares} 20. e5 $1 {[%emt 0:00:38] White is more active.} Re8 $2 {[%emt 0:20:00]} (20... dxe5 $16 21. Qxe5 Qg5) 21. exd6 $18 {[%emt 0:05:22]} e5 {[%emt 0:00:20]} 22. Qd2 {[%emt 0:01:27][%cal Ob4b5] aiming for b5!.} f4 {[%emt 0:02:55][%cal Bf5f4,Bf4f3,Bf3f2][%mdl 32]} 23. f3 {[%emt 0:06:12]} e4 {[%emt 0:03:36]} 24. fxe4 {[%emt 0:04:07]} (24. Nxf4 Qg5 25. fxe4 Rxe4 $14) 24... Rxe4 {[%emt 0:02:31]} 25. Rfe1 {[%emt 0:00:31] Repels Re2} (25. Nxf4 Qg5 $16) 25... Rxe1+ {[%emt 0:04:05]} 26. Rxe1 {[%emt 0:01:19]} (26. Qxe1 f3 27. Ne7+ Kf8 $16) 26... f3 {[%emt 0:03:01] ...f2+ would now be deadly.} 27. Ne7+ {[%emt 0:06:18]} Kf8 $2 {[%emt 0:06:32]} (27... Kg7 $18) 28. Qd4 {[%emt 0:00:23][%cal Rd4h8]} (28. d7 $2 Bxd7 29. gxf3 (29. Re4 $2 fxg2 30. Nxg6+ hxg6 $19) 29... Rxe7 $19) 28... f2+ {[%emt 0:01:56]} 29. Kh2 {[%emt 0:00:02][%cal Rd4h8]} Ke8 {[%emt 0:04:04][%cal Bf8e8,Be8f7,Bf7g6][%mdl 32]} 30. d7+ {[%emt 0:01:13]} (30. Nxc6+ fxe1=Q (30... fxe1=R $2 31. Qh8+ Rf8 32. d7+ Kxd7 33. Qxf8 $19) 31. Qh8+ Kd7 32. Nb8+ Kxd6 33. Qd8+ Ke6 34. Qb6+ Ke7 (34... Ke5 {gets mated.} 35. a4 Qhd1 36. Nd7+ Rxd7 37. Qc5+ Ke4 38. b5 Qd3 39. Qg1 Qdg3+ 40. Kh1 Qxg1+ 41. Kxg1 Rd1#) 35. Nc6+ bxc6 36. Qc7+ Kf8 37. Qd8+ Kg7 38. Qd4+ Kh6 39. Qg1 Rf1) 30... Bxd7 {[%emt 0:01:20]} 31. Qh8+ {[%emt 0:00:02]} (31. Nxg6+ $2 Kd8 32. Rf1 (32. Re8+ $2 Kc7 $19) 32... Qxg6 $19) 31... Rf8 {[%emt 0:00:18]} 32. Nxg6+ {[%emt 0:00:08] White mates.} Kf7 {[%emt 0:00:21]} 33. Re7+ {[%emt 0:00:46]} (33. Nxf8 $2 {too greedy.} fxe1=Q (33... fxe1=R 34. Nxd7 Qh6 35. Qb8 $11) 34. Nxd7 Qe7 $19) 33... Kxg6 {[%emt 0:00:15]} 34. Qg7+ {[%emt 0:00:05] Weighted Error Value: White=0.11 (very precise) /Black=0.53  Loses game:     	---       	Black=1      Mistake:       	White=1     	Black=2      Inaccurate:     	---       	Black=2      OK:         	White=4     	Black=7      Best:        	White=2     	---        Strong:       	White=1     	---} 1-0